bitfinex/quotes_BTCUSD_20251221
["timestamp","ask_amount","ask_price","bid_price","bid_amount"]
[1766332620281,0.05670337,88179.0,88161.0,0.46218]
[1766332620282,0.00572,88167.0,88161.0,0.46218]
[1766332621170,0.00572,88167.0,88159.0,0.0001]
[1766332621355,2e-06,88161.0,88159.0,0.0001]
[1766332629267,0.00572,88174.0,88163.0,0.49293]
[1766332629487,0.00562,88174.0,88163.0,0.49293]
[1766332629685,0.00562,88174.0,88163.0,0.50427262]
[1766332630297,0.00562,88174.0,88164.0,0.01134249]
[1766332631401,0.00562,88174.0,88168.0,0.01134198]
[1766332631789,0.00562,88174.0,88165.0,0.49293]
[1766332633385,0.00562,88174.0,88165.0,0.50427236]
[1766332634157,0.00562,88174.0,88166.0,0.01134224]
[1766332634778,0.00562,88174.0,88165.0,0.50427236]
[1766332635005,0.00562,88174.0,88166.0,0.01134224]
[1766332635197,0.00562,88174.0,88165.0,0.50427236]
[1766332635398,0.00562,88174.0,88166.0,0.01134224]
[1766332635605,0.00562,88174.0,88168.0,0.01134198]
[1766332636020,0.00572,88175.0,88168.0,0.01134198]
[1766332636334,0.00572,88175.0,88167.0,0.50199211]
[1766332636540,0.00572,88176.0,88167.0,0.55238211]
[1766332636833,0.00572,88177.0,88169.0,0.47921]
[1766332637602,0.0001,88184.0,88169.0,0.47921]
[1766332637603,0.0001,88184.0,88169.0,0.49055185]
[1766332637808,0.00572,88183.0,88169.0,0.5296]
[1766332638014,0.00572,88183.0,88171.0,0.47349]
[1766332638406,0.00572,88183.0,88172.0,0.01360976]
[1766332638566,0.0001,88184.0,88170.0,0.05039]
[1766332638567,0.0001,88184.0,88176.0,0.54153546]
[1766332638771,0.0001,88184.0,88177.0,0.01134082]
[1766332639135,0.00016479,88184.0,88177.0,0.01134082]
[1766332639332,0.00016479,88184.0,88178.0,0.01134069]
[1766332639538,0.00016479,88184.0,88176.0,0.54153546]
[1766332639539,0.00016479,88184.0,88176.0,0.47349]
[1766332639926,0.00016479,88184.0,88176.0,0.48483095]
[1766332640124,0.00016479,88184.0,88177.0,0.01134082]
[1766332640374,0.00572,88185.0,88177.0,0.01134082]
[1766332640375,4.79e-06,88185.0,88180.0,0.46761]
[1766332640535,4.79e-06,88185.0,88180.0,0.46771717]
[1766332641727,4.79e-06,88185.0,88181.0,0.01360837]
[1766332641925,4.79e-06,88185.0,88180.0,0.46771717]
[1766332643029,0.23250307,88191.0,88167.0,0.46761]
[1766332643234,0.61816,88184.0,88169.0,0.01134185]
[1766332643429,0.01133953,88187.0,88168.0,0.02843063]
[1766332643430,0.61816,88181.0,88170.0,0.0001]
[1766332645504,0.61816,88181.0,88170.0,0.01144172]
[1766332645700,0.61816,88181.0,88170.0,0.0001]
[1766332646895,0.61816,88181.0,88170.0,0.01144172]
[1766332647312,0.61816,88181.0,88170.0,0.0001]
[1766332647475,0.61816,88181.0,88170.0,0.01144172]
[1766332647672,0.61816,88181.0,88170.0,0.0001]
[1766332647879,0.61816,88181.0,88170.0,0.01144172]
[1766332648100,0.61816,88181.0,88170.0,0.0001]
[1766332649298,0.61816,88181.0,88170.0,0.01144172]
[1766332649698,0.61816,88181.0,88170.0,0.0001]
[1766332649925,0.61816,88181.0,88170.0,0.01144172]
[1766332650968,0.61816,88181.0,88171.0,0.01134159]
[1766332651244,0.61816,88181.0,88172.0,0.01134146]
[1766332651878,0.61816,88181.0,88171.0,0.01134159]
[1766332652789,0.61816,88181.0,88170.0,0.01144172]
[1766332654168,0.61816,88181.0,88170.0,0.0001]
[1766332658472,0.61816,88181.0,88170.0,0.0002]
[1766332659085,0.61816,88181.0,88170.0,0.01154172]
[1766332659688,0.61816,88181.0,88171.0,0.01134159]
[1766332659977,0.61816,88181.0,88170.0,0.0002]
[1766332660374,0.61816,88181.0,88170.0,0.01154172]
[1766332663394,0.4547,88178.0,88170.0,0.0002]
[1766332663796,0.4547,88178.0,88170.0,0.0001]
[1766332664231,0.58598,88179.0,88170.0,0.0001]
[1766332664430,0.60304005,88183.0,88170.0,0.0001]
[1766332664634,0.58598,88182.0,88170.0,0.0001]
[1766332665012,0.58598,88182.0,88170.0,0.46781]
[1766332668052,0.4547,88179.0,88170.0,0.0001]
[1766332668210,0.58598,88176.0,88170.0,0.0001]
[1766332668409,0.58598,88176.0,88167.0,0.00010725]
[1766332668410,0.4547,88175.0,88167.0,0.00010725]
[1766332668950,0.00572,88177.0,88167.0,0.00010725]
[1766332669166,0.00572,88177.0,88167.0,0.01144936]
[1766332669859,0.00572,88177.0,88167.0,0.47915936]
[1766332671090,0.00572,88177.0,88168.0,0.01134198]
[1766332673288,0.00572,88177.0,88167.0,0.47915936]
[1766332673797,0.00572,88177.0,88168.0,0.01134198]
[1766332674365,0.00572,88177.0,88167.0,0.47915936]
[1766332674773,0.00572,88177.0,88168.0,0.01134198]
[1766332675797,0.00572,88177.0,88167.0,0.47915936]
[1766332675993,0.00572,88177.0,88168.0,0.01134198]
[1766332677213,0.00572,88177.0,88169.0,0.01134185]
[1766332677437,0.00572,88177.0,88168.0,0.47905198]
[1766332678547,0.00572,88177.0,88168.0,0.46771]
[1766332684585,0.00572,88177.0,88169.0,0.01134185]
[1766332684895,0.00572,88177.0,88168.0,0.47905198]
[1766332686133,0.00572,88177.0,88169.0,0.01134185]
[1766332686317,0.00572,88177.0,88168.0,0.46771]
[1766332686747,0.58289,88177.0,88167.0,0.46426024]
[1766332689433,0.00572,88177.0,88167.0,0.47560235]
[1766332689679,0.57717,88176.0,88167.0,0.47560235]
[1766332689898,0.47094,88177.0,88167.0,0.46426024]
[1766332690120,0.47094,88177.0,88167.0,0.47560235]
[1766332692675,0.47094,88177.0,88169.0,0.01134185]
[1766332693032,0.47094,88177.0,88167.0,0.52097031]
[1766332693222,0.47094,88177.0,88168.0,0.01134198]
[1766332693509,0.47094,88177.0,88167.0,0.46426024]
[1766332693716,0.47094,88177.0,88168.0,0.01134198]
[1766332694638,0.47094,88177.0,88169.0,0.01134185]
[1766332694847,0.47094,88177.0,88168.0,0.01134198]
[1766332696533,0.47094,88177.0,88169.0,0.01134185]
[1766332696725,0.47094,88177.0,88168.0,0.01134198]
[1766332697501,0.47094,88177.0,88148.0,0.01134455]
[1766332697502,0.01134211,88167.0,88148.0,0.01134455]
[1766332697719,0.02271063,88179.0,88152.0,0.00562]
[1766332697720,0.57717,88164.0,88152.0,0.00562]
[1766332697895,1.04239,88163.0,88152.0,0.01696404]
[1766332698037,0.46522,88163.0,88154.0,0.01134378]
[1766332698231,0.00572,88166.0,88163.0,0.457658]
[1766332698435,0.00572,88170.0,88163.0,0.457658]
[1766332698687,0.00572,88170.0,88163.0,0.45711]
[1766332699743,0.00572,88170.0,88163.0,0.46845262]
[1766332699942,0.00572,88170.0,88163.0,0.45711]
[1766332700138,0.00572,88170.0,88163.0,0.46845262]
[1766332700342,0.00572,88170.0,88163.0,0.45711]
[1766332701080,0.00572,88170.0,88163.0,0.46845262]
[1766332701284,0.00572,88170.0,88163.0,0.45711]
[1766332702784,0.00572,88170.0,88160.0,0.53221057]
[1766332702785,0.000551,88163.0,88160.0,0.46415299]
[1766332702985,0.000551,88163.0,88155.0,0.01134365]
[1766332703198,0.000551,88163.0,88156.0,0.01134352]
[1766332703463,0.57717,88169.0,88157.0,0.01134339]
[1766332703667,0.57717,88169.0,88159.0,0.46415299]
[1766332704336,0.57717,88169.0,88159.0,0.47549613]
[1766332704529,0.57717,88169.0,88159.0,0.47556232]
[1766332704726,0.57717,88169.0,88160.0,0.01134301]
[1766332705488,0.57717,88169.0,88159.0,0.47556232]
[1766332706112,0.57717,88169.0,88160.0,0.01134301]
[1766332706315,0.57717,88169.0,88159.0,0.47556232]
[1766332706525,0.47094,88170.0,88159.0,0.01134314]
[1766332706934,0.47094,88170.0,88160.0,0.01134301]
[1766332707364,0.47094,88170.0,88159.0,0.01134314]
[1766332707567,0.47094,88170.0,88160.0,0.01134301]
[1766332708632,0.47094,88170.0,88159.0,0.01134314]
[1766332708835,0.47094,88170.0,88160.0,0.01134301]
[1766332709403,0.47094,88170.0,88157.0,0.47374339]
[1766332709576,0.60823,88169.0,88157.0,0.47374339]
[1766332710561,0.60823,88169.0,88158.0,0.01134327]
[1766332710956,0.45404,88168.0,88157.0,0.4624]
[1766332711144,0.60823,88167.0,88157.0,0.47374339]
[1766332713355,0.60823,88167.0,88157.0,0.93796257]
[1766332713869,0.45404,88162.0,88157.0,0.47556257]
[1766332714035,0.60823,88161.0,88157.0,0.01134339]
[1766332714690,0.45404,88162.0,88157.0,0.01134339]
[1766332714857,0.45404,88162.0,88156.0,0.01134352]
[1766332715192,0.00572,88165.0,88162.0,0.000548]
[1766332715370,0.00572,88165.0,88159.0,0.01134314]
[1766332716362,0.00572,88165.0,88159.0,0.46802314]
[1766332716962,0.00572,88165.0,88159.0,0.45668]
[1766332717169,0.005172,88165.0,88159.0,0.46802314]
[1766332717350,0.005172,88165.0,88159.0,0.45668]
[1766332717548,0.005172,88165.0,88159.0,0.46802314]
[1766332717950,2e-06,88165.0,88160.0,0.45151]
[1766332718152,2e-06,88165.0,88160.0,0.51324301]
[1766332718568,2e-06,88165.0,88162.0,0.01134275]
[1766332718772,2e-06,88165.0,88161.0,0.46285288]
[1766332719883,2e-06,88165.0,88154.0,0.01134378]
[1766332720096,2e-06,88165.0,88158.0,0.01134327]
[1766332720327,2e-06,88165.0,88159.0,0.01134314]
[1766332720864,2e-06,88165.0,88160.0,0.01134301]
[1766332721069,2e-06,88165.0,88158.0,0.01134327]
[1766332721372,2e-06,88165.0,88159.0,0.01134314]
[1766332722301,2e-06,88165.0,88160.0,0.01134301]
[1766332722472,2e-06,88165.0,88161.0,0.01134288]
[1766332722989,2e-06,88165.0,88160.0,0.46285301]
[1766332723591,2e-06,88165.0,88157.0,0.01134339]
[1766332723924,0.000549,88160.0,88157.0,0.01134339]
[1766332724221,2e-06,88165.0,88156.0,0.01134352]
[1766332724629,2e-06,88165.0,88156.0,0.46285352]
[1766332724843,2e-06,88165.0,88158.0,0.01134327]
[1766332725127,0.617472,88165.0,88158.0,0.01134327]
[1766332725359,0.617472,88165.0,88156.0,0.01134352]
[1766332725741,0.617472,88165.0,88155.0,0.00582]
[1766332726107,2e-06,88165.0,88155.0,0.00582]
[1766332730620,0.617472,88165.0,88155.0,0.00582]
[1766332731707,0.617472,88165.0,88155.0,0.0001]
[1766332731854,0.617472,88165.0,88154.0,0.45723]
[1766332733387,0.617572,88165.0,88154.0,0.45723]
[1766332737558,0.617572,88165.0,88154.0,0.46857378]
[1766332737767,0.000102,88165.0,88156.0,0.45151]
[1766332738392,0.000102,88165.0,88155.0,0.46421918]
[1766332739309,0.000102,88165.0,88155.0,0.47556283]
[1766332739633,0.000102,88165.0,88155.0,0.46421918]
[1766332739804,0.000102,88165.0,88155.0,0.47556283]
[1766332740012,0.000102,88165.0,88155.0,0.46421918]
[1766332742172,0.000102,88165.0,88154.0,0.01706378]
[1766332742304,0.000102,88165.0,88155.0,0.47556283]
[1766332742507,2e-06,88165.0,88155.0,0.47556283]
[1766332742707,2e-06,88165.0,88156.0,0.01134352]
[1766332743128,2e-06,88165.0,88155.0,0.47556283]
[1766332743540,2e-06,88165.0,88156.0,0.01134352]
[1766332743741,2e-06,88165.0,88155.0,0.47556283]
[1766332743984,0.61747,88164.0,88154.0,0.00572]
[1766332744483,0.61747,88164.0,88154.0,0.01706378]
[1766332745012,0.61747,88164.0,88154.0,0.00572]
[1766332745851,0.61747,88164.0,88154.0,0.01706378]
[1766332746539,0.450972,88165.0,88154.0,0.01706378]
[1766332746735,0.450972,88165.0,88155.0,0.01134365]
[1766332747044,0.450972,88165.0,88154.0,0.46857378]
[1766332747441,0.450972,88165.0,88155.0,0.01134365]
[1766332747636,0.450972,88165.0,88154.0,0.46857378]
[1766332747839,0.450972,88165.0,88155.0,0.01134365]
[1766332748039,0.000449,88155.0,88154.0,0.45723]
[1766332748240,0.450972,88165.0,88155.0,0.01124365]
[1766332748477,0.450972,88165.0,88155.0,0.01134365]
[1766332748685,0.450972,88165.0,88156.0,0.01134352]
[1766332748980,0.450772,88165.0,88156.0,0.01134352]
[1766332749371,0.450772,88165.0,88157.0,0.01134339]
[1766332749970,0.450772,88165.0,88156.0,0.01134352]
[1766332749971,0.00572,88166.0,88156.0,0.01134352]
[1766332750136,0.00572,88166.0,88159.0,0.01134314]
[1766332750342,0.00572,88166.0,88158.0,0.45171]
[1766332750674,0.00572,88166.0,88162.0,0.44599]
[1766332750880,0.00572,88166.0,88163.0,0.01134262]
[1766332751079,0.00572,88166.0,88162.0,0.44599]
[1766332751478,0.00572,88166.0,88163.0,0.01134262]
[1766332751677,0.00572,88166.0,88162.0,0.45733275]
[1766332751894,0.00572,88166.0,88163.0,0.01134262]
[1766332752094,0.00572,88166.0,88162.0,0.45733275]
[1766332753112,0.00572,88166.0,88161.0,0.01134288]
[1766332753443,0.00572,88166.0,88162.0,0.01134275]
[1766332753718,0.00572,88167.0,88162.0,0.01134275]
[1766332755399,0.00572,88167.0,88161.0,0.01134288]
[1766332756820,0.00572,88167.0,88162.0,0.01134275]
[1766332757862,0.00572,88167.0,88161.0,0.01134288]
[1766332759400,0.000329,88161.0,88160.0,0.01134301]
[1766332759839,0.00572,88167.0,88160.0,0.01134301]
[1766332760246,0.00572,88167.0,88161.0,0.01134288]
[1766332760563,0.00572,88167.0,88162.0,0.01134275]
[1766332760753,0.00572,88167.0,88161.0,0.01134288]
[1766332761323,0.00572,88167.0,88163.0,0.44599]
[1766332761530,0.0055,88167.0,88163.0,0.44599]
[1766332761739,0.0055,88167.0,88162.0,0.01134275]
[1766332762689,0.0055,88167.0,88163.0,0.01134262]
[1766332762897,0.0055,88167.0,88162.0,0.01134275]
[1766332763324,0.0055,88167.0,88163.0,0.01134262]
[1766332764851,0.0055,88167.0,88164.0,0.01134249]
[1766332765025,0.0055,88167.0,88163.0,0.01134262]
[1766332765193,0.0055,88167.0,88164.0,0.01134249]
[1766332765820,0.0055,88167.0,88163.0,0.01134262]
[1766332768895,0.0055,88167.0,88164.0,0.01134249]
[1766332769086,0.0055,88167.0,88163.0,0.01134262]
[1766332769479,0.000549,88163.0,88161.0,0.01134288]
[1766332770021,0.0055,88167.0,88161.0,0.01134288]
[1766332770531,0.58428,88167.0,88157.0,0.45743339]
[1766332770808,1.03645,88167.0,88157.0,0.45743339]
[1766332771016,0.45767,88167.0,88157.0,0.44609]
[1766332771213,0.45767,88167.0,88157.0,0.45743339]
[1766332771565,0.45767,88167.0,88158.0,0.01134327]
[1766332771758,1.04677,88167.0,88158.0,0.01134327]
[1766332772381,1.04677,88167.0,88157.0,0.45743339]
[1766332772685,1.04677,88167.0,88158.0,0.01134327]
[1766332772919,1.04677,88167.0,88157.0,0.45743339]
[1766332773138,1.04677,88167.0,88158.0,0.01134327]
[1766332774495,0.45767,88167.0,88157.0,0.44609]
[1766332774715,0.5891,88166.0,88157.0,0.45743339]
[1766332775403,0.5891,88166.0,88157.0,0.01144339]
[1766332775607,0.54757,88162.0,88157.0,0.0001]
[1766332776042,0.54757,88162.0,88157.0,0.01134339]
[1766332776241,0.47012,88163.0,88157.0,0.01134339]
[1766332776640,0.47012,88163.0,88155.0,0.01144365]
[1766332776836,0.47012,88163.0,88156.0,0.01134352]
[1766332777254,0.47012,88163.0,88155.0,0.0001]
[1766332777483,0.0055,88167.0,88155.0,0.0001]
[1766332777617,0.00568,88170.0,88163.0,0.44049]
[1766332777820,0.00568,88170.0,88159.0,0.01134314]
[1766332778020,0.00568,88170.0,88159.0,0.45128314]
[1766332778336,0.00568,88170.0,88160.0,0.45128301]
[1766332778931,0.00568,88170.0,88160.0,0.43994]
[1766332779126,0.00568,88170.0,88160.0,0.45128301]
[1766332779550,0.00568,88170.0,88160.0,0.43994]
[1766332779958,0.00568,88170.0,88160.0,0.45128301]
[1766332781745,0.00568,88170.0,88160.0,0.43994]
[1766332782065,0.54757,88169.0,88158.0,0.00568]
[1766332782265,1.01769,88168.0,88158.0,0.00568]
[1766332786179,1.01769,88168.0,88158.0,0.01702327]
[1766332786380,1.01769,88168.0,88158.0,0.00568]
[1766332786709,0.00568,88170.0,88158.0,0.45696327]
[1766332787639,0.00568,88170.0,88158.0,0.44562]
[1766332787934,0.00568,88170.0,88159.0,0.01134314]
[1766332787935,0.55325,88170.0,88159.0,0.01134314]
[1766332788820,0.55325,88170.0,88158.0,0.45696327]
[1766332788995,0.55325,88170.0,88159.0,0.01134314]
[1766332789169,0.55325,88170.0,88158.0,0.45696327]
[1766332789365,0.55325,88170.0,88159.0,0.01134314]
[1766332790359,0.55325,88170.0,88158.0,0.44562]
[1766332790493,0.54757,88169.0,88158.0,0.44562]
[1766332792154,0.47012,88169.0,88158.0,0.44562]
[1766332792354,0.54757,88168.0,88158.0,0.44562]
[1766332797494,0.47012,88168.0,88158.0,0.44562]
[1766332797649,0.54757,88167.0,88158.0,0.44562]
[1766332797840,0.47012,88168.0,88158.0,0.44562]
[1766332799048,0.47012,88168.0,88158.0,0.45696327]
[1766332799818,0.47012,88168.0,88158.0,0.44562]
[1766332800846,0.47012,88168.0,88158.0,0.45696327]
[1766332801370,0.47012,88168.0,88158.0,0.44562]
[1766332801568,0.54757,88167.0,88158.0,0.00568]
[1766332801815,0.47012,88167.0,88158.0,0.00568]
[1766332802025,0.54757,88163.0,88158.0,0.00568]
[1766332802431,0.00568,88170.0,88145.0,0.44004]
[1766332802432,0.47012,88162.0,88145.0,0.44004]
[1766332802620,0.47012,88162.0,88145.0,0.0001]
[1766332802621,0.54757,88155.0,88145.0,0.0001]
[1766332802746,0.00055,88158.0,88145.0,0.0001]
[1766332802747,0.02275934,88162.0,88145.0,0.0001]
[1766332802947,0.02275934,88162.0,88127.0,0.02271063]
[1766332802948,0.46422611,88160.0,88132.0,0.44004]
[1766332803192,1.01769,88160.0,88132.0,0.44004]
[1766332803407,0.01134391,88153.0,88134.0,0.4514]
[1766332803617,0.55325,88161.0,88153.0,0.000549]
[1766332803848,0.03408639,88159.0,88153.0,0.000549]
[1766332803969,0.55325,88161.0,88149.0,0.92135323]
[1766332804167,0.03408511,88160.0,88149.0,0.92135323]
[1766332804611,0.03408511,88160.0,88149.0,0.91000881]
[1766332805667,0.03408511,88160.0,88149.0,0.46428881]
[1766332805668,0.53887,88158.0,88149.0,0.46428881]
[1766332805899,0.53887,88157.0,88149.0,0.46428881]
[1766332806101,0.53887,88157.0,88147.0,0.46996881]
[1766332807200,0.53887,88157.0,88141.0,0.05672666]
[1766332807201,0.01134507,88144.0,88123.0,0.01159545]
[1766332807398,0.01134507,88144.0,88125.0,0.01134751]
[1766332807399,0.0113452,88143.0,88125.0,0.01134751]
[1766332807622,0.53887,88139.0,88124.0,0.44601]
[1766332807840,0.48453,88137.0,88124.0,0.44601]
[1766332808038,0.00568,88139.0,88124.0,0.44033]
[1766332808039,0.53787,88135.0,88124.0,0.44033]
[1766332808288,0.53787,88135.0,88125.0,0.00568]
[1766332808465,0.53787,88135.0,88125.0,0.01702751]
[1766332808639,0.48453,88136.0,88125.0,0.00568]
[1766332809160,0.48453,88136.0,88125.0,0.00603655]
[1766332809522,0.03409282,88142.0,88127.0,0.44033]
[1766332809732,0.00513,88141.0,88136.0,0.000549]
[1766332809965,0.48453,88140.0,88125.0,0.01170406]
[1766332810151,0.53887,88135.0,88125.0,0.00035655]
[1766332810366,0.53887,88133.0,88125.0,0.00035655]
[1766332810840,0.48453,88134.0,88125.0,0.00035655]
[1766332810841,0.011347,88129.0,88125.0,5.5e-07]
[1766332810974,0.53887,88129.0,88125.0,5.5e-07]
[1766332811935,0.48453,88130.0,88125.0,5.5e-07]
[1766332813503,1.0234,88130.0,88125.0,5.5e-07]
[1766332813939,0.03977631,88131.0,88125.0,5.5e-07]
[1766332813940,0.53887,88128.0,88125.0,5.5e-07]
[1766332815048,0.53887,88127.0,88125.0,5.5e-07]
[1766332815607,0.48453,88127.0,88125.0,5.5e-07]
[1766332815846,0.53887,88126.0,88125.0,5.5e-07]
[1766332816263,0.53633278,88126.0,88125.0,5.5e-07]
[1766332816487,0.00568,88127.0,88126.0,0.000356]
[1766332816705,0.00220427,88127.0,88126.0,0.000356]
[1766332816918,0.00220427,88127.0,88125.0,5.5e-07]
[1766332817782,0.00220427,88127.0,88117.0,0.00568]
[1766332817783,0.48673427,88127.0,88117.0,0.00568]
[1766332818003,0.48709219,88127.0,88117.0,0.00568]
[1766332818430,0.53887,88126.0,88117.0,0.00568]
[1766332819074,0.53887,88122.0,88117.0,0.00568]
[1766332819277,0.53887,88121.0,88117.0,0.00568]
[1766332819493,0.538514,88121.0,88117.0,0.00568]
[1766332821806,0.48453,88120.0,88113.0,0.0004]
[1766332821967,0.000549,88117.0,88113.0,0.0004]
[1766332822348,0.00568,88122.0,88113.0,0.44073]
[1766332824022,0.48453,88121.0,88113.0,0.0004]
[1766332824706,1.0234,88121.0,88115.0,0.0002477]
[1766332824919,0.48453,88121.0,88115.0,0.0002477]
[1766332825157,0.53887,88118.0,88115.0,7e-07]
[1766332829938,0.538624,88118.0,88115.0,7e-07]
[1766332830764,0.46788,88117.0,88112.0,0.0004]
[1766332831207,0.46788,88117.0,88105.0,0.0004]
[1766332831208,0.46728,88117.0,88109.0,0.00568]
[1766332831656,0.01134893,88114.0,88105.0,0.0004]
[1766332831856,0.57618,88115.0,88105.0,0.0004]
[1766332832091,0.57618,88113.0,88105.0,0.0004]
[1766332832498,0.57618,88113.0,88101.0,0.00608]
[1766332832499,0.01134932,88111.0,88101.0,0.0004]
[1766332832710,0.00568,88113.0,88101.0,0.0004]
[1766332832711,0.01134957,88109.0,88101.0,0.0004]
[1766332832877,0.01134932,88111.0,88101.0,0.0004]
[1766332833213,0.46788,88111.0,88101.0,0.0004]
[1766332833587,0.00568,88113.0,88111.0,0.001099]
[1766332833801,0.01145151,88110.0,88102.0,0.44263]
[1766332834188,0.00568,88113.0,88102.0,0.44263]
[1766332834590,0.58186,88113.0,88102.0,0.44263]
[1766332834991,0.55812,88112.0,88102.0,0.44263]
[1766332835235,0.55812,88110.0,88101.0,0.0004]
[1766332835564,1.03813,88108.0,88101.0,0.0004]
[1766332835839,0.55812,88107.0,88101.0,0.0004]
[1766332836419,0.557571,88107.0,88101.0,0.0004]
[1766332837434,0.557571,88107.0,88106.0,0.0002787]
[1766332838668,0.557571,88107.0,88100.0,0.00568]
[1766332838669,0.55812,88104.0,88100.0,0.00568]
[1766332838851,0.55812,88104.0,88097.0,0.00572]
[1766332839055,1.03813,88104.0,88097.0,0.00572]
[1766332841096,0.48001,88102.0,88094.0,0.0001]
[1766332841393,0.47951,88100.0,88094.0,0.0001]
[1766332842244,0.478411,88100.0,88094.0,0.0001]
[1766332842537,0.4787687,88100.0,88092.0,0.00572]
[1766332842941,0.4787687,88100.0,88092.0,0.01707176]
[1766332843179,1.0368887,88100.0,88092.0,0.01707176]
[1766332843589,1.0368887,88100.0,88093.0,0.01135163]
[1766332843590,0.0003577,88100.0,88093.0,0.01135163]
[1766332843784,0.0003577,88100.0,88092.0,0.01707176]
[1766332844410,0.5584777,88100.0,88098.0,0.00024778]
[1766332844810,0.0003577,88100.0,88098.0,0.00024778]
[1766332846023,0.02270326,88105.0,88098.0,0.44489778]
[1766332846024,0.02100369,88105.0,88098.0,0.44489778]
[1766332846199,0.00572,88105.0,88102.0,0.42365]
[1766332847080,0.00572,88105.0,88099.0,0.01135086]
[1766332847286,0.00572,88105.0,88100.0,0.01135073]
[1766332849118,0.00572,88105.0,88099.0,0.01135086]
[1766332849491,0.00572,88105.0,88100.0,0.01135073]
[1766332850361,0.00572,88105.0,88098.0,0.01170608]
[1766332850477,0.00572,88105.0,88098.0,0.00035509]
[1766332851539,0.00572,88105.0,88095.0,0.95077511]
[1766332851540,0.55812,88102.0,88095.0,0.01135138]
[1766332851758,0.48001,88100.0,88095.0,0.00010742]
[1766332851960,0.01707009,88105.0,88095.0,0.00010742]
[1766332852109,0.48001,88102.0,88095.0,4.2e-07]
[1766332852311,0.55812,88100.0,88095.0,4.2e-07]
[1766332852858,0.55812,88099.0,88095.0,4.2e-07]
[1766332853148,0.55812,88098.0,88095.0,4.2e-07]
[1766332855037,0.50272063,88099.0,88095.0,4.2e-07]
[1766332855457,0.48001,88099.0,88095.0,4.2e-07]
[1766332856390,1.03813,88099.0,88095.0,4.2e-07]
[1766332857676,0.55812,88097.0,88095.0,4.2e-07]
[1766332859682,0.558013,88097.0,88095.0,4.2e-07]
[1766332860304,1.038023,88097.0,88095.0,4.2e-07]
[1766332860507,0.48001,88097.0,88095.0,4.2e-07]
[1766332860676,0.50272063,88096.0,88095.0,4.2e-07]
[1766332860875,0.48001,88096.0,88095.0,4.2e-07]
[1766332861513,1.03813,88096.0,88095.0,4.2e-07]
[1766332861726,0.00572,88098.0,88095.0,4.2e-07]
[1766332862586,0.56384,88098.0,88095.0,4.2e-07]
[1766332865647,0.54692,88096.0,88095.0,4.2e-07]
[1766332865846,1.02025,88096.0,88095.0,4.2e-07]
[1766332866376,0.47333,88096.0,88095.0,4.2e-07]
[1766332868143,0.00572,88098.0,88095.0,4.2e-07]
[1766332868342,1.02025,88096.0,88095.0,4.2e-07]
[1766332870718,0.01707099,88098.0,88083.0,0.00442043]
[1766332870719,1.02025,88094.0,88083.0,0.00442043]
[1766332870864,0.01135125,88096.0,88083.0,0.00477813]
[1766332871063,0.54692,88092.0,88083.0,0.0003577]
[1766332871304,1.02025,88092.0,88083.0,0.0003577]
[1766332871872,0.0567558,88097.0,88083.0,0.0003577]
[1766332871873,0.54692,88110.0,88088.0,0.41828]
[1766332872091,0.00572,88109.0,88100.0,0.46503349]
[1766332872491,0.00572,88109.0,88098.0,0.42391099]
[1766332872492,0.00562,88109.0,88098.0,0.42391099]
[1766332872621,0.55254,88109.0,88098.0,0.42391099]
[1766332872834,0.55254,88109.0,88098.0,0.41256]
[1766332875249,0.47333,88108.0,88094.0,0.01135151]
[1766332875443,0.54692,88106.0,88094.0,0.01135151]
[1766332875748,0.54692,88106.0,88094.0,0.41256]
[1766332876608,0.47333,88108.0,88094.0,0.42391151]
[1766332876723,0.54692,88107.0,88094.0,0.42391151]
[1766332877078,0.54692,88107.0,88090.0,0.53314553]
[1766332877079,0.473879,88094.0,88083.0,0.0003577]
[1766332877281,1.02025,88092.0,88084.0,0.00572]
[1766332878077,0.54692,88096.0,88084.0,0.01707279]
[1766332878275,0.54692,88096.0,88085.0,0.00572]
[1766332878480,0.54692,88096.0,88085.0,0.01707267]
[1766332878780,0.54692,88096.0,88085.0,0.42963267]
[1766332878988,0.54692,88096.0,88086.0,0.01135254]
[1766332879187,0.54692,88096.0,88085.0,0.42963267]
[1766332879394,0.54692,88096.0,88085.0,0.41828]
[1766332879556,0.54692,88096.0,88085.0,0.42963267]
[1766332880874,0.54692,88096.0,88086.0,0.01135254]
[1766332881099,0.64606252,88096.0,88086.0,0.01135254]
[1766332881396,0.64606252,88096.0,88085.0,0.42963267]
[1766332881606,0.00572,88099.0,88085.0,0.4863959]
[1766332881818,0.00572,88102.0,88094.0,0.41256]
[1766332882011,3.04e-06,88102.0,88098.0,0.01135099]
[1766332882208,3.04e-06,88102.0,88099.0,0.42167086]
[1766332882709,0.54692,88110.0,88099.0,0.42167086]
[1766332882930,0.54692,88110.0,88095.0,0.05675683]
[1766332882931,0.04371943,88118.0,88110.0,0.06809667]
[1766332883126,0.2427,88140.0,88107.0,0.01134983]
[1766332883127,0.47333,88131.0,88111.0,0.36088]
[1766332883354,0.47333,88131.0,88119.0,0.01134829]
[1766332883355,0.54692,88130.0,88119.0,0.01134829]
[1766332883551,0.54692,88130.0,88120.0,0.46503349]
[1766332883552,0.0001,88128.0,88120.0,0.46503349]
[1766332884141,0.0001,88128.0,88120.0,0.46509828]
[1766332884359,0.47333,88126.0,88120.0,6.479e-05]
[1766332884481,0.00048421,88120.0,88118.0,0.00572]
[1766332884682,0.00010732,88120.0,88118.0,0.00572]
[1766332885487,0.00010732,88120.0,88116.0,0.01134867]
[1766332885687,0.00010732,88120.0,88117.0,0.01706854]
[1766332885887,0.00010732,88120.0,88108.0,0.0114497]
[1766332886105,0.00010732,88120.0,88111.0,0.00572]
[1766332887141,0.00010732,88120.0,88111.0,0.01706932]
[1766332887538,0.00010732,88120.0,88113.0,0.01134906]
[1766332887746,0.00010732,88120.0,88112.0,0.01134919]
[1766332888744,0.00010732,88120.0,88111.0,0.00572]
[1766332888745,0.45346,88119.0,88111.0,0.00572]
[1766332888961,0.54907,88118.0,88111.0,0.00572]
[1766332890722,0.54907,88117.0,88091.0,0.22703619]
[1766332890936,0.02271063,88102.0,88090.0,0.32915]
[1766332891105,0.02271063,88102.0,88081.0,0.34090318]